Cogmind - Beta 16.1 @@@ ROGUE MODE // 2026.04.04 @ 15:32:24 Player: the Result: Destroyed by 2G-XZ7(R) with Subdweller Beam Cannon Performance ------------- Evolutions (0) 0 Regions Visited (2) 400 Robots Destroyed (51) 255 Value Destroyed (719) 719 Prototype IDs (16) 320 Alien Tech Used (0) 0 Bonus (-292) -292 TOTAL SCORE: 1402 Bonus ------- Friendly Fire -292 Cogmind --------- Core Integrity 0/250 Matter 244/300 Energy 44/200 System Corruption 0% Temperature Warm (118) Movement Treading (160) Location -10/Subcaves Parts ------- > --- POWER (1) -------- Subdweller Power Source > --- PROPULSION (2) --- Light Treads Light Treads > --- UTILITY (2) ------ Large Storage Unit Seismic Detector > --- WEAPON (2) ------- Subdweller Beam Cannon > --- INVENTORY (15) --- Light Treads Disposable Heat Sink Huge Storage Unit High-capacity Matter Pod (7) Seismic Detector Makeshift Cloaking Device Shotgun Shotgun Shotgun Shotgun Battle Rifle Light Cannon Mini Grenade Launcher Hammer Peak State ------------ > --- POWER ------------ Subdweller Power Source > --- PROPULSION ------- Light Treads Light Treads > --- UTILITY ---------- Large Storage Unit Seismic Detector > --- WEAPON ----------- Subdweller Beam Cannon Subdweller Beam Cannon > --- INVENTORY -------- Light Treads Light Treads Disposable Heat Sink Huge Storage Unit High-capacity Matter Pod Seismic Detector Makeshift Cloaking Device Shotgun Shotgun Shotgun Shotgun Battle Rifle Light Cannon Mini Grenade Launcher Hammer [Rating: 12] Favorites ----------- Power Light Ion Engine Engine Light Ion Engine Propulsion Light Treads Treads Light Treads Utility Seismic Detector Device Seismic Detector Storage Large Storage Unit Weapon Light Cannon Energy Cannon Subdweller Beam Cannon Ballistic Gun Assault Rifle Ballistic Cannon Light Cannon Launcher Mini Grenade Launcher Impact Weapon Hammer Build | -11 -10 -10 ------- Run | Yrd Mat Sub Slots Evolved . | . . . Power . | . . . Propulsion . | . . . Utility . | . . . Weapon . | . . . Parts Attached 25 | 9 9 7 Power 3 | 1 . 2 Engine 3 | 1 . 2 Core . | . . . Reactor . | . . . Propulsion 4 | 2 1 1 Treads 4 | 2 1 1 Leg . | . . . Wheel . | . . . Hover . | . . . Flight . | . . . Utility 7 | 3 4 . Device 3 | 2 1 . Storage 4 | 1 3 . Processor . | . . . Hackware . | . . . Protection . | . . . Artifact . | . . . Weapon 11 | 3 4 4 Energy Gun . | . . . Energy Cannon 2 | . . 2 Ballistic Gun 4 | 3 . 1 Ballistic Cannon 3 | . 2 1 Launcher 1 | . 1 . Special Weapon . | . . . Impact Weapon 1 | . 1 . Slashing Weapon . | . . . Piercing Weapon . | . . . Special Melee Weapon . | . . . Unidentified Prototypes . | . . . Parts Lost 6 | . . 6 Power 1 | . . 1 Propulsion 2 | . . 2 Utility . | . . . Weapon 3 | . . 3 Highest Loss Streak 3 | . . 3 To Critical Strikes . | . . . Average Backups 12 | 2 12 14 Power . | . . . Propulsion 2 | . 2 1 Utility 3 | . 2 4 Weapon 7 | 1 7 8 Tool/Special . | . . . Unused Backups 15 | . 6 9 Power 1 | . 1 . Propulsion 3 | . 2 1 Utility 5 | . 1 4 Weapon 6 | . 2 4 Tool/Special . | . . . Average Slot Usage (%) 99 | . 100 99 Engine 13 | . 14 13 Treads 27 | . 28 27 Device 14 | . 14 14 Storage 14 | . 14 14 Energy Cannon 1 | . . 2 Ballistic Gun 6 | . 1 11 Ballistic Cannon 13 | . 21 4 Launcher 1 | . 2 . Impact Weapon 5 | . 2 8 Peak Build Rating 12 | 7 10 12 Average Rating 9 | 5 8 9 On Entrance 5 | . 7 9 Avg Prop Armor Cover (%) . | . . . Naked Turns . | . . . Heaviest Build 42 | 13 30 42 Greatest Support 40 | 40 40 40 Greatest Overweight (x) 1 | . . 1 Average Overweight (x) . | . . . Largest Inventory Capacity 15 | 8 15 15 Average Capacity 13 | 7 13 15 Most Carried 15 | 6 15 15 Average Carried 12 | 2 12 14 Final Capacity 15 | 8 15 15 Final Carried 15 | 6 15 14 Class Distribution -------------------- 100% | Mutant Dominant Class ---------------- Mutant | -10/Materials Mutant | -10/Subcaves Resources | -11 -10 -10 ----------- Run | Yrd Mat Sub Matter Collected 1280 | 392 564 324 Remotely . | . . . Salvage Created 1162 | 263 562 337 Parts 81 | 28 36 17 Haulers Intercepted 2 | . 2 . Recyclers Shooed 5 | 1 4 . Parts Field Recycled . | . . . Retrieved Matter . | . . . Parts Self-Destructed 13 | . . 13 Prevented . | . . . Parts Restored . | . . . Kills | -11 -10 -10 ------- Run | Yrd Mat Sub Combat Hostiles Destroyed 24 | . 13 11 Guns 4 | . . 4 Cannons 12 | . 9 3 AOE 8 | . 4 4 Classes Destroyed 11 | 3 5 3 Worker 3 | 1 2 . Builder 3 | . 3 . Tunneler 8 | 8 . . Hauler 2 | . 2 . Recycler 5 | 1 4 . Turret 2 | . . 2 Watcher 2 | . 2 . Swarmer 15 | . 9 6 Grunt 4 | . 4 . Subdweller 5 | . . 5 Zionite 2 | . . 2 Best Kill Streak 7 | 4 7 6 Combat Bots Only 4 | . 3 4 Max Kills in Single Turn 2 | 1 2 2 Gunslinging . | . . . Exploded 2 | . 1 2 Melee . | . . . Uniques/NPCs Destroyed . | . . . Combat | -11 -10 -10 -------- Run | Yrd Mat Sub Hostile Shots Fired 149 | . 41 108 Missed 50 | . 16 34 Hits 99 | . 25 74 Projectile 99 | . 25 74 Critical Strikes 2 | . . 2 Damage Taken 1335 | . 242 1093 Core 266 | . 24 242 Absorbed by Shields . | . . . Regen/Repaired (Parts) 43 | . 43 . Core Remaining (%) 100 | 100 . . Volleys Fired 105 | 22 42 41 Largest 2 | 2 2 2 Hottest 160 | 40 60 160 Shots Fired 193 | 44 73 76 Gun 68 | 44 . 24 Cannon 111 | . 62 49 Launcher 14 | . 11 3 Special . | . . . Kinetic 151 | 44 62 45 Thermal 28 | . . 28 Explosive 14 | . 11 3 Electromagnetic . | . . . Robot Hit Streak 14 | 5 5 14 Robot Miss Streak 4 | 4 4 2 Penetration Max . | . . . Secondary Targets 1 | . . 1 Max Gunslinging Chain 1 | . . 1 Shots Hit Robots 113 | 21 35 57 Core Hits 57 | 11 30 16 Critical Kills . | . . . Critical Parts Destroyed 2 | . 1 1 Critical Strikes 4 | . 2 2 Blast 2 | . 1 1 Smash 2 | . 1 1 Melee Attacks 52 | . 10 42 Impact 52 | . 10 42 Slashing . | . . . Piercing . | . . . Sneak Attacks 8 | . 3 5 Combat Hostiles . | . . . Follow-up Attacks . | . . . Damage Inflicted 3097 | 260 1317 1520 Guns 463 | 260 . 203 Cannons 1384 | . 575 809 Explosions 813 | . 557 256 Melee 405 | . 153 252 Ramming 32 | . 32 . Kinetic 1356 | 260 575 521 Thermal 491 | . . 491 Explosive 813 | . 557 256 Electromagnetic . | . . . Impact 405 | . 153 252 Slashing . | . . . Piercing . | . . . Highest Corruption . | . . . Average Corruption . | . . . Corruption Purged . | . . . Corruption Blocked . | . . . Overload Shots . | . . . Overflow Damage 208 | . 115 93 Projectiles 17 | . . 17 Explosions 68 | . 57 11 Melee 123 | . 58 65 Knockbacks 14 | . 5 9 Impact 2 | . 1 1 Kinetic 12 | . 4 8 Secondary . | . . . Self-Inflicted Damage 53 | . 24 29 Shots 2 | . 1 1 Rammed 4 | . 4 . Targets Rammed 4 | . 4 . Kicked . | . . . Crushed . | . . . Highest Temperature 338 | . 24 338 Average Temperature 91 | . 12 122 Received Heat Transfer 297 | . 30 267 Siege Activations . | . . . Martial Activations . | . . . Shielding Activations . | . . . Robots Disrupted . | . . . Combat Hostiles . | . . . Robots Corrupted 2 | . 2 . Combat Hostiles . | . . . Parts Fried 3 | . 3 . Impact Corruptions 5 | . 3 2 Robots Melted . | . . . Combat Hostiles . | . . . Parts Melted 1 | . . 1 Heat Transferred 666 | . . 666 Parts Sabotaged . | . . . Parts Stolen . | . . . Parts Stripped . | . . . Power Chain Reactions . | . . . Alert | -11 -10 -10 ------- Run | Yrd Mat Sub Maximum Alert Level . | . . . Low Security (%) 100 | 100 100 . Level 1 . | . . . Level 2 . | . . . Level 3 . | . . . Level 4 . | . . . Level 5 . | . . . High Security . | . . . Max Security . | . . . Peak Influence 151 | 20 151 . Initial 6 | . 6 . Average 60 | 3 67 . Influence Increases 854 | 50 604 200 Destroy 0b10 Robot/C 420 | . 260 160 Destroy 0b10 Robot/NC 115 | 50 65 . Destroy Leader 68 | . 58 10 Successful Hack 26 | . 26 . Select Force Hacks 60 | . 60 . Disable Machine 30 | . 30 . Destroy Structure 90 | . 90 . Lose Combat Pursuer 45 | . 15 30 Influence Decreases 760 | 40 493 227 Entered New Map 63 | . 4 59 Time Decay 645 | 40 489 116 Lost Part 52 | . . 52 Squads Dispatched 4 | . 4 . Investigation 3 | . 3 . Extermination . | . . . Reinforcement 1 | . 1 . Assault . | . . . Garrison . | . . . Intercept . | . . . Searches Triggered . | . . . Construction Impeded . | . . . Haulers Reinforced . | . . . Active Scanning Responses . | . . . Cargo Convoy Interrupts . | . . . Stealth | -11 -10 -10 --------- Run | Yrd Mat Sub Distress Signals . | . . . Communications Jammed . | . . . Distress Signals . | . . . Times Spotted 34 | . 20 14 Peak Tracking Total 6 | . 3 6 Tactical Retreats 2 | . 1 1 Traps | -11 -10 -10 ------- Run | Yrd Mat Sub Traps Triggered . | . . . Indirectly . | . . . Trap Hack Attempts . | . . . Triggered . | . . . Disarmed . | . . . Reprogrammed . | . . . Reused . | . . . Traps Extracted . | . . . Installed . | . . . Triggered . | . . . Machines | -11 -10 -10 ---------- Run | Yrd Mat Sub Machines Disabled 6 | . 2 4 Max in Single Turn 3 | . 1 3 Machines Repaired . | . . . Machines Dismantled . | . . . Machines Sabotaged . | . . . Overloaded Fab Kills . | . . . Hacking | -11 -10 -10 --------- Run | Yrd Mat Sub Machines Accessed 10 | . 9 1 Terminals 6 | . 6 . Fabricators . | . . . Repair Stations 1 | . 1 . Recycling Units 2 | . 2 . Scanalyzers . | . . . Garrison Access . | . . . Total Hacks 34 | . 25 9 Successful 23 | . 14 9 Failed 11 | . 11 . Catastrophic . | . . . Database Lockouts . | . . . Manual 12 | . 12 . Terminals 18 | . 18 . Fabricators . | . . . Repair Stations 4 | . 4 . Recycling Units 3 | . 3 . Scanalyzers . | . . . Garrison Access . | . . . Terminal Hacks 16 | . 7 9 Record 8 | . . 8 Robot Analysis 1 | . 1 . Prototype ID Bank 2 | . 2 . Locate Traps 3 | . 3 . Hauler Manifests 1 | . 1 . Proto ID Catalog 1 | . . 1 Fabricator Hacks . | . . . Repair Station Hacks 2 | . 2 . Scan Component 1 | . 1 . Repair 1 | . 1 . Recycling Unit Hacks . | . . . Scanalyzer . | . . . Garrison Access Hacks . | . . . Unauthorized Hacks 5 | . 5 . Terminals 3 | . 3 . Skim 3 | . 3 . Fabricators . | . . . Repair Stations . | . . . Recycling Units 2 | . 2 . Tunnel 2 | . 2 . Scanalyzers . | . . . Garrison Access . | . . . Data Cores Recovered . | . . . Used . | . . . Hacking Detections 7 | . 7 . Full Trace Events 1 | . 1 . Feedback Events . | . . . Feedback Blocked . | . . . Robot Schematics Acquired . | . . . Robots Built . | . . . Authchips . | . . . Time . | . . . Total Robot Build Rating . | . . . Part Schematics Acquired . | . . . Parts Built . | . . . Authchips . | . . . Time . | . . . Total Part Build Rating . | . . . Part Studies Acquired . | . . . Parts Repaired 1 | . 1 . Time 26 | . 26 . Parts Recycled . | . . . Recycled Matter . | . . . Retrieved Matter . | . . . Retrieved Components . | . . . Parts Scanalyzed . | . . . Part Schematics Acquired . | . . . Parts Damaged . | . . . Bothacking | -11 -10 -10 ------------ Run | Yrd Mat Sub Used RIF Installer . | . . . Robots Hacked . | . . . Non-combat . | . . . Combat . | . . . Robot Hacks Applied . | . . . Relay Couplers Released . | . . . Fabnet Peak Effective % . | . . . Robots Rewired . | . . . Allies Hacked . | . . . Hacks Repelled . | . . . Allies | -11 -10 -10 -------- Run | Yrd Mat Sub Total Allies . | . . . Largest Group . | . . . Highest-Rated Group . | . . . Highest-Rated Ally . | . . . Total Orders . | . . . Ally Attacks . | . . . Total Damage . | . . . Kills . | . . . Allies Corrupted . | . . . Allies Melted . | . . . Intel | -11 -10 -10 ------- Run | Yrd Mat Sub Active Infowar (turns) 3938 | 140 1892 1906 Seismic 3938 | 140 1892 1906 Robot Analysis Total 1 | . 1 . Derelict Logs Recovered 3 | . . 3 Drone Launches . | . . . Drone Recoveries . | . . . Exploration | -11 -10 -10 ------------- Run | Yrd Mat Sub Turns Passed 4023 | 225 1892 1906 Spaces Moved 1964 | 73 945 946 Core 3 | 3 . . Treads 1961 | 70 945 946 Legs . | . . . Wheels . | . . . Hover . | . . . Flight . | . . . Fastest Speed 50 | 50 160 160 Average Speed 162 | 155 160 165 Slowest Speed 240 | 160 160 240 Overloaded Moves . | . . . Propulsion Burnouts . | . . . Robots Hopped . | . . . Potential Cave-ins . | . . . Cave-ins Triggered . | . . . Exploration Rate (%) 51 | 5 97 51 Regions Visited 2 Branch Regions 1 Pre-discovered Areas 3 | . 2 1 Known Exits Taken . | . . . Unknown Exits Taken 2 | 1 1 . Scrap Searched . | . . . Spaces Dug 38 | . 34 4 Terrain Destroyed 131 | . 103 28 Melee 8 | . 4 4 Projectile 1 | . . 1 AOE 122 | . 99 23 Terrain Rammed . | . . . Walls Destroyed . | . . . Machines Disabled . | . . . Actions | -11 -10 -10 --------- Run | Yrd Mat Sub Total 2506 | 137 1232 1137 Wait 285 | 27 181 77 Move 1962 | 72 944 946 Hop . | . . . Pick Up 30 | 6 18 6 Fast Attach 8 | 7 . 1 Attach 6 | . . 6 Detach . | . . . Swap 36 | 2 20 14 Drop 18 | 1 13 4 Fire 105 | 22 42 41 Melee 52 | . 10 42 Ram . | . . . Kick . | . . . Crush 4 | . 4 . Escape Stasis . | . . . Rewire . | . . . Trap . | . . . Miscellaneous . | . . . Route ------- -11/Scrapyard -10/Materials (discovered 5 exits: [*Mat x3] / [*Min] / *Sub) -10/Subcaves (discovered 3 exits: [*Mat x2] / [*Rec]) History --------- Turn | Location | Event 11 | -11/Scrapyard | Discovered new exit (range 14) 226 | -11/Scrapyard | Entered Materials 300 | -10/Materials | Build established: Mutant 654 | -10/Materials | Discovered new exit (range 8) 860 | -10/Materials | Discovered new exit (range 9) 1163 | -10/Materials | Discovered new exit (range 15) 1629 | -10/Materials | Discovered new exit (range 8) 1664 | -10/Materials | Repaired Lgt. Treads 1847 | -10/Materials | Discovered new exit (range 12) 2118 | -10/Materials | Entered Subcaves 2213 | -10/Subcaves | Lost 3 parts (1n2w) 2806 | -10/Subcaves | Discovered new exit (range 5) 3077 | -10/Subcaves | Learned Materials terminal intel 3104 | -10/Subcaves | Learned Materials terminal intel 3175 | -10/Subcaves | Visited 4L-MR0's lab 3259 | -10/Subcaves | Core integrity fell below 50% 3277 | -10/Subcaves | Learned Materials garrison access intel 3278 | -10/Subcaves | Shifting Twisted Machinery released Sub. Beam Cannon 3331 | -10/Subcaves | Discovered new exit (range 9) 3460 | -10/Subcaves | Learned location of Zion (-7) 3460 | -10/Subcaves | Met a Zionite searching for "candidates" 3767 | -10/Subcaves | Shifting Twisted Machinery released Sub. Power Source 3796 | -10/Subcaves | Discovered new exit (range 14) 3999 | -10/Subcaves | A Subdweller sparked back to life 3999 | -10/Subcaves | A Subdweller sparked back to life 3999 | -10/Subcaves | A Subdweller sparked back to life 4011 | -10/Subcaves | Core integrity fell below 20% 4024 | -10/Subcaves | Destroyed by 2G-XZ7(R) with Subdweller Beam Cannon Last Messages --------------- 03875_ Acquired 8 matter. 03877_ Subatomizers dissect the Sub. Power Source. 03884_ Acquired 16 matter. 03896_ Acquired 5 matter. 03899_ Acquired 8 matter. 03901_ Subatomizers dissect the Sub. Power Source. 03903_ Acquired 15 matter. 03916_ Subatomizers dissect the Sub. Power Source. 03939_ Subatomizers dissect the Sub. Power Source, destroying it. 03949_ Acquired 15 matter. 03983_ Acquired 17 matter. 03999_ FL-IFU(R) knocked back. 03999_ FL-IFU(R) creaks and sparks as it begins to move. 03999_ OX-KGF(R) creaks and sparks as it begins to move. 03999_ 2G-XZ7(R) creaks and sparks as it begins to move. 04011_ FL-IFU(R) destroyed. 04015_ Subatomizers dissect the Sub. Monowheel. 04023_ Disposable Heat Sink melted. 04023_ OX-KGF(R) destroyed. 04024_ Sub. Beam Cannon destroyed. Map ----- +----------------------------------------------------+ | ????????#" # #????????????# # #?? | | ????????#" #?????######## #?? | | ???????##" " #??#### #?? | | ???????#< #??# #?? | | ???????##" ##?# #?? | | ????????# ### #### #?? | | ????????# # ##?# #?##""" #?? | | ????????#" ####??# #??# ## ##? | | ????????#### # ##?????# #?#" ####?# # #? | | ??????????######??????### ## " #??### # ##? | | ????????????????????????##" " """" #### #? | | ?????????????????????????#" # ## ##? | | ????????????????????????## " ##### #?? | | ???????????????????????## """"""##???# ## #?? | | ???????????????????????# " """""###??# ###?##?? | | ???????????????????????# " """ " #??# ###???? | | ???????????????????????# """ #?## #???? | | ???????????????????????# " "" #?# #???? | | ??????????????????????## "" """ #?# ##???? | | ??????????????????????# %"""""" ??## ##????? | | ?????????????????????## ### #??## #?????? | | ????????????????????## #? ###### ##????? | | ????????????????????# ### ## # # #????? | | ????????????????????# =[! ##?# ##????? | | ???????????????????## &%R! ### #?????? | | ??????????????????## ##@ ## # ## #?????? | | ??????????????????# ## " "" ## #####??? | | ??????????????????# % # "## ### ##?? | | ?????????????????# " &""" "# ### #?? | | ????????????????# < "# # # "" #### #?? | | ????????????????# & <"###### """ ### #?? | | ????????????????## ##????# """ ## #??? | | ?????????????????## ""###?????# """" ###??? | | ??????????????????## "#?????? """" ##???? | | ???????????????????# ##?????? """"" ##??? | | ??????????????????? ????????? """" ##?? | | ???????????????????" ??????????# """ ## #?? | | ???????????????????#" ??????????# """ ### #?? | | ????????????????????##??????????# "" ## #?? | | ?????????????????????????????????# #?? | | ?????????????????????????????????## #?? | | ??????????????????????????????????## #?? | | ???????????????????????????????????## #?? | | ????????????????????????????????????# #?? | | ????????????????????????????????????# ##?? | | ????????????????????????????????????## ##??? | | ??????????????????????????? ""???????# ##???? | | ?????????????????????????? ??????# #????? | | ?????????????????????????? ????### ###????? | | ????????????????????????? #??## ##??????? | +----------------------------------------------------+ Best States ------------- Heat Dissipation 25 Energy Generation 15 Energy Capacity 200 Matter Stores 300 Matter Capacity 300 Sight Range 16 Terrain Scan Density 10 Evasion (%) 40 Recoil Reduction 2 Item Schematics ----------------- None Robot Schematics ------------------ None Fabricated ------------ Nothing Repaired ---------- Lgt. Treads | 69% | -10/Materials Studied --------- None Alien Tech Used ----------------- None Achievements -------------- None Challenges ------------ None Game ------ Seed UtilityTrapProtomatter Manual? 0 Play Time 00:24:18 Cumulative 690.4 hours Start 2026.04.04 @ 15:11:19 End 2026.04.04 @ 15:32:24 Sessions 1 Manual Loads 0 Difficulty Rogue Special Mode None Game No. 380 Rogue 380 Adventurer 0 Explorer 0 Win Type - Total 30 Types 15/1/6/2/1/1/1/2/1/0 Lore% 93 Gallery% 87 Achievement% 78 Wizard Run 0 Options --------- Layout 0 ASCII 0 Keyboard 0 Movement Numpad Keybinds 0 Fullscreen 2 Font 24/Smallcaps Map View 76x50 Zoom Use 0% Tactical HUD 1 Map Filters NONE Filters NONE Steam 1 RUN: ddf2ddb8-0356-45bb-ba07-81588a83a0b7